bitfinex/quotes_SOLUSD_20220228
["timestamp","ask_amount","ask_price","bid_price","bid_amount"]
[1646080891685,1.68458573,98.326,98.223,1.0]
[1646080891884,145.74055879,98.325,98.223,1.0]
[1646080892083,102.2,98.321,98.223,1.0]
[1646080892285,2.23864687,98.316,98.223,1.0]
[1646080892887,61.3,98.314,98.204,1.0]
[1646080893087,1.85367344,98.313,98.17,12.46]
[1646080893286,163.5,98.299,98.143,46.69439092]
[1646080893585,1.41892782,98.295,98.143,46.69439092]
[1646080893787,1.41892782,98.291,98.143,46.69439092]
[1646080893985,163.5,98.279,98.143,46.69439092]
[1646080894184,102.2,98.275,98.143,46.69439092]
[1646080894383,1.72361036,98.274,98.143,46.69439092]
[1646080894585,12.46,98.27,98.143,46.69439092]
[1646080894787,2.17758919,98.268,98.143,46.69439092]
[1646080895187,2.74678921,98.267,98.143,46.69439092]
[1646080895989,24.2842,98.266,98.151,102.2]
[1646080896191,1.6746799,98.265,98.151,102.2]
[1646080896390,1.6746799,98.265,98.152,2.74678921]
[1646080896589,4.42146911,98.265,98.152,2.74678921]
[1646080896788,4.42146911,98.265,98.15,12.46]
[1646080898090,4.42146911,98.265,98.13,12.46]
[1646080898291,4.42146911,98.265,98.131,4.073]
[1646080898893,4.42146911,98.265,98.132,54.48140541]
[1646080899091,4.42146911,98.265,98.133,106.273]
[1646080899692,4.42146911,98.265,98.134,2.74678921]
[1646080899892,4.42146911,98.265,98.135,4.073]
[1646080900093,4.42146911,98.265,98.151,102.2]
[1646080900292,4.42146911,98.265,98.152,28.0054781]
[1646080900293,1.6746799,98.265,98.152,28.0054781]
[1646080900493,1.6746799,98.265,98.152,32.0774781]
[1646080900693,1.6746799,98.265,98.153,38.93442474]
[1646080900893,1.6746799,98.265,98.153,41.68121395]
[1646080901092,1.6746799,98.265,98.153,2.74678921]
[1646080901294,2.74678921,98.264,98.153,2.74678921]
[1646080901498,2.74678921,98.264,98.15,12.46]
[1646080901694,2.74678921,98.264,98.151,4.073]
[1646080901892,2.74678921,98.264,98.15,12.46]
[1646080902496,2.74678921,98.264,98.151,48.94281201]
[1646080903702,2.74678921,98.264,98.152,6.81978921]
[1646080904103,2.74678921,98.264,98.153,2.74678921]
[1646080904302,2.74678921,98.264,98.154,4.072]
[1646080904701,2.74678921,98.264,98.155,2.74678921]
[1646080904901,2.74678921,98.264,98.154,4.072]
[1646080904902,2.74678921,98.264,98.15,12.46]
[1646080906304,4.56062903,98.264,98.15,12.46]
[1646080906707,2.74678921,98.263,98.15,12.46]
[1646080908520,102.2,98.256,98.15,12.46]
[1646080908720,2.16899636,98.255,98.15,12.46]
[1646080908922,25.23834327,98.255,98.15,12.46]
[1646080909120,4.68681239,98.254,98.15,12.46]
[1646080909323,27.22681239,98.254,98.15,12.46]
[1646080909620,4.95564243,98.253,98.15,12.46]
[1646080910021,2.74678921,98.252,98.15,12.46]
[1646080910821,2.20885322,98.253,98.15,12.46]
[1646080911221,2.20885322,98.253,98.151,2.74678921]
[1646080912624,2.20885322,98.253,98.15,12.46]
[1646080913724,2.20885322,98.253,98.151,104.94678921]
[1646080914126,2.20885322,98.253,98.152,2.74678921]
[1646080915732,2.20885322,98.253,98.15,12.46]
[1646080917233,2.20885322,98.253,98.146,48.3741046]
[1646080917533,2.20885322,98.253,98.134,2.74678921]
[1646080917734,2.20885322,98.253,98.147,2.74678921]
[1646080918137,2.20885322,98.253,98.13,12.46]
[1646080918535,2.20885322,98.253,98.131,42.94912184]
[1646080919438,2.20885322,98.253,98.132,2.74678921]
[1646080920237,104.40885322,98.253,98.132,2.74678921]
[1646080920437,102.2,98.247,98.132,2.74678921]
[1646080920639,163.5,98.237,98.119,2.74678921]
[1646080920838,102.2,98.235,98.119,2.74678921]
[1646080921042,102.2,98.229,98.119,2.74678921]
[1646080921239,2.03095301,98.228,98.119,2.74678921]
[1646080921539,2.26604901,98.226,98.121,60.20483253]
[1646080921740,2.26604901,98.226,98.121,62.95162174]
[1646080922040,2.26604901,98.226,98.122,2.74678921]
[1646080923640,2.26604901,98.226,98.121,60.20483253]
[1646080923941,2.26604901,98.226,98.122,2.74678921]
[1646080925241,2.26604901,98.226,98.122,9.35678921]
[1646080927741,2.26604901,98.226,98.122,2.74678921]
[1646080928546,2.74678921,98.225,98.122,2.74678921]
[1646080928745,4.67555754,98.225,98.122,2.74678921]
[1646080929045,2.74678921,98.224,98.122,2.74678921]
[1646080929447,1.70342297,98.222,98.122,2.74678921]
[1646080929646,1.70342297,98.222,98.121,60.20483253]
[1646080929845,1.70342297,98.222,98.12,4.073]
[1646080930050,12.46,98.22,98.12,4.073]
[1646080930251,2.16028684,98.218,98.12,4.073]
[1646080930646,102.2,98.211,98.12,4.073]
[1646080930847,124.19285172,98.206,98.12,4.073]
[1646080931046,102.2,98.2,98.12,4.073]
[1646080931246,102.2,98.189,98.12,4.073]
[1646080931448,1.93554065,98.188,98.07,10.64752114]
[1646080931646,163.5,98.187,98.07,10.64752114]
[1646080931847,166.24678921,98.187,98.07,10.64752114]
[1646080932047,147.72003676,98.186,98.071,57.75017302]
[1646080932247,1.73241875,98.185,98.071,57.75017302]
[1646080932547,4.47920796,98.185,98.071,57.75017302]
[1646080932748,102.2,98.176,98.071,57.75017302]
[1646080932951,1.84991917,98.174,98.071,57.75017302]
[1646080933345,2.19157539,98.173,98.061,25.57978921]
[1646080933548,102.2,98.166,98.052,10.6486334]
[1646080933747,1.80399093,98.165,98.052,10.6486334]
[1646080934046,102.2,98.164,98.052,10.6486334]
[1646080934247,102.2,98.146,98.018,2.74678921]
[1646080934449,12.46,98.14,98.018,2.74678921]
[1646080934648,12.46,98.14,98.014,10.65220707]
[1646080934649,61.3,98.138,98.026,2.74678921]
[1646080934850,102.2,98.135,98.026,2.74678921]
[1646080935049,61.3,98.13,98.026,2.74678921]
[1646080935251,102.2,98.123,98.026,2.74678921]
[1646080935449,102.2,98.123,97.994,15.459]
[1646080935450,163.5,98.116,98.015,50.0485516]
[1646080935649,1.94089546,98.115,97.99,33.5026528]
[1646080935849,163.5,98.109,97.98,24.6657]
[1646080936054,2.1332312,98.108,97.98,37.1257]
[1646080936250,4.88002041,98.108,97.98,37.1257]
[1646080936651,163.5,98.106,97.981,52.68650055]
[1646080936851,27.08498921,98.107,97.981,52.68650055]
[1646080936852,163.5,98.104,97.981,52.68650055]
[1646080937052,1.83592217,98.103,97.981,52.68650055]
[1646080937256,27.28671138,98.103,97.981,52.68650055]
[1646080937454,1.83322797,98.101,97.981,52.68650055]
[1646080937654,1.83322797,98.101,97.982,21.0426528]
[1646080938556,163.5,98.087,97.983,10.65647625]
[1646080938757,1.88095794,98.085,97.981,52.68650055]
[1646080939056,12.46,98.08,97.981,52.68650055]
[1646080939257,2.05287378,98.079,97.981,52.68650055]
[1646080939758,4.79966299,98.079,97.981,52.68650055]
[1646080940981,168.29966299,98.079,97.981,52.68650055]
[1646080941181,2.19648468,98.078,97.981,52.68650055]
[1646080941580,163.5,98.076,97.975,26.63914109]
[1646080941780,163.5,98.076,97.954,4.08]
[1646080941781,2.03341363,98.075,97.954,4.08]
[1646080942081,4.78020284,98.075,97.954,4.08]
[1646080942283,2.74678921,98.074,97.953,24.9983]
[1646080942480,163.5,98.069,97.954,53.65259494]
[1646080942883,4.66184657,98.068,97.954,53.65259494]
[1646080943080,1.78892221,98.065,97.954,53.65259494]
[1646080943280,102.2,98.056,97.954,53.65259494]
[1646080943480,45.48907069,98.054,97.954,53.65259494]
[1646080943682,1.67524108,98.053,97.954,53.65259494]
[1646080944282,1.67524108,98.053,97.955,2.74678921]
[1646080944484,1.67524108,98.053,97.955,6.82778921]
[1646080944884,1.67524108,98.053,97.955,2.74678921]
[1646080945388,1.67524108,98.053,97.954,53.65259494]
[1646080945389,2.74678921,98.052,97.95,12.46]
[1646080945584,4.53834727,98.052,97.938,2.74678921]
[1646080945986,2.18256241,98.05,97.939,2.74678921]
[1646080946284,2.18256241,98.05,97.94,53.58055827]
[1646080946785,2.18256241,98.05,97.941,2.74678921]
[1646080946985,2.18256241,98.05,97.942,4.081]
[1646080947385,2.18256241,98.05,97.943,2.74678921]
[1646080947685,9.06,98.052,97.944,4.081]
[1646080948086,9.06,98.052,97.945,2.74678921]
[1646080948286,9.06,98.052,97.946,106.281]
[1646080948484,9.06,98.052,97.961,28.90632524]
[1646080948885,9.06,98.052,97.962,2.74678921]
[1646080950087,3.76699967,98.055,97.962,2.74678921]
[1646080950291,1.35206553,98.05,97.962,2.74678921]
[1646080950789,18.54215068,98.051,97.962,2.74678921]
[1646080951691,23.9689,98.067,97.962,104.94678921]
[1646080952091,23.9689,98.067,97.963,2.74678921]
[1646080952294,23.9689,98.067,97.964,102.2]
[1646080952690,117.63848921,98.1,97.964,102.2]
[1646080952691,4.45089463,98.105,97.965,24.81083376]
[1646080952891,1.46310094,98.154,98.003,3.05172391]
[1646080953093,1.46310094,98.154,98.011,102.2]
[1646080953292,1.46310094,98.154,98.012,2.33729059]
[1646080953491,1.46310094,98.154,98.013,102.2]
[1646080953692,1.46310094,98.154,98.014,2.69526836]
[1646080953991,24.2902,98.159,98.016,2.26746768]
[1646080953992,1.43018722,98.152,98.016,2.26746768]
[1646080954192,1.43018722,98.152,98.017,150.2101]
[1646080954392,1.43018722,98.152,98.03,12.46]
[1646080954591,1.43018722,98.152,98.031,153.30022443]
[1646080954792,1.43018722,98.152,98.031,53.84701364]
[1646080954994,103.63018722,98.152,98.032,2.74678921]
[1646080955192,14.48488531,98.153,98.032,2.74678921]
[1646080955193,1.53069851,98.151,98.032,2.74678921]
[1646080957293,1.53069851,98.151,98.032,104.94678921]
[1646080957694,1.53069851,98.151,98.034,102.2]
[1646080958095,1.53069851,98.151,98.035,2.74678921]
[1646080959195,1.37277451,98.151,98.036,102.2]
[1646080959395,1.37277451,98.151,98.05,12.46]
[1646080959598,1.37277451,98.151,98.051,45.33079071]
[1646080961299,1.37277451,98.151,98.052,2.74678921]
[1646080961798,1.37277451,98.151,98.052,104.94678921]
[1646080961997,24.2902,98.159,98.053,2.4943107]
[1646080962197,25.31136711,98.189,98.054,102.2]
[1646080962198,23.6051,98.189,98.054,102.2]
[1646080962397,1.6221824,98.188,98.057,2.71181664]
[1646080962697,1.6221824,98.188,98.072,2.78483326]
[1646080962897,18.88750064,98.187,98.074,102.2]
[1646080963296,1.75191674,98.186,98.076,102.2]
[1646080963701,1.75191674,98.186,98.091,50.32450209]
[1646080964098,1.75191674,98.186,98.09,12.46]
[1646080964899,1.75191674,98.186,98.042,2.5144549]
[1646080964900,1.41152579,98.185,98.042,2.5144549]
[1646080965099,1.41152579,98.185,98.06,68.37376671]
[1646080965299,1.41152579,98.185,98.06,12.46]
[1646080966400,1.41152579,98.185,98.061,52.85038551]
[1646080967400,1.41152579,98.185,98.06,12.46]
[1646080968200,1.41152579,98.185,98.025,24.7406]
[1646080968401,163.5,98.183,98.035,48.25965108]
[1646080968600,163.5,98.169,98.035,48.25965108]
[1646080968803,2.99020616,98.166,98.035,48.25965108]
[1646080969500,187.13592905,98.165,98.035,48.25965108]
[1646080969702,163.5,98.163,98.006,24.9454]
[1646080969901,5.50372796,98.164,98.006,24.9454]
[1646080969902,163.5,98.149,98.006,24.9454]
[1646080970103,1.70447721,98.146,98.0,12.46]
[1646080970402,1.70447721,98.146,98.001,2.74678921]
[1646080970601,163.5,98.143,98.002,48.64298052]
[1646080971003,3.25551036,98.129,98.002,48.64298052]
[1646080971205,163.5,98.127,98.002,48.64298052]
[1646080971412,1.74334224,98.126,98.002,48.64298052]
[1646080972006,63.04334224,98.126,98.002,48.64298052]
[1646080972205,103.56411498,98.125,98.002,48.64298052]
[1646080972405,1.64957309,98.124,98.002,48.64298052]
[1646080973006,102.2,98.115,98.002,48.64298052]
[1646080973206,102.2,98.113,98.002,48.64298052]
[1646080973406,1.59429842,98.11,98.002,48.64298052]
[1646080974307,102.2,98.105,97.99,12.46]
[1646080974709,1.68059305,98.104,97.99,12.46]
[1646080975107,62.98059305,98.104,97.99,12.46]
[1646080975307,4.95074571,98.088,97.973,53.43926056]
[1646080975509,163.5,98.087,97.973,53.43926056]
[1646080975709,1.36893769,98.086,97.954,2.74678921]
[1646080975909,163.5,98.085,97.954,2.74678921]
[1646080976109,49.2154,98.086,97.954,2.74678921]
[1646080976110,163.5,98.079,97.954,2.74678921]
[1646080976313,1.54954868,98.078,97.954,2.74678921]
[1646080976713,1.54954868,98.078,97.955,52.75442585]
[1646080978212,1.54954868,98.078,97.956,104.94678921]
[1646080978411,1.54954868,98.078,97.957,2.72125316]
[1646080978613,1.53770978,98.085,97.971,49.76098392]
[1646080978813,1.53770978,98.085,97.96,12.46]
[1646080979212,103.73770978,98.085,97.96,12.46]
[1646080979414,102.2,98.065,97.947,46.9065]
[1646080979613,102.2,98.063,97.947,46.9065]
[1646080979816,17.72475258,98.062,97.948,57.97986433]
[1646080980015,61.3,98.052,97.948,57.97986433]
[1646080980214,61.3,98.046,97.948,57.97986433]
[1646080980415,6.31878336,98.045,97.948,57.97986433]
[1646080981413,1.46920868,98.043,97.948,57.97986433]
[1646080981916,4.95074571,98.045,97.948,57.97986433]
[1646080982715,6.37524462,98.045,97.94,12.46]
[1646080982915,6.37524462,98.045,97.924,4.081]
[1646080982916,61.3,98.041,97.924,4.081]
[1646080983117,102.2,98.028,97.924,4.081]
[1646080983315,102.2,98.028,97.901,22.8123]
[1646080983316,1.78968833,98.026,97.901,26.8933]
[1646080983818,61.3,98.024,97.902,44.05833001]
[1646080984015,1.80413015,98.023,97.902,46.80511922]
[1646080984216,1.80413015,98.023,97.903,2.74678921]
[1646080984616,102.2,98.015,97.903,2.74678921]
[1646080984816,102.2,98.007,97.903,2.74678921]
[1646080985016,102.2,98.007,97.901,22.8123]
[1646080985017,102.2,98.005,97.901,22.8123]
[1646080985216,1.74913891,98.004,97.882,4.083]
[1646080985417,1.74913891,98.004,97.881,4.083]
[1646080985616,4.95074571,98.003,97.889,50.94646936]
[1646080985819,4.95074571,98.003,97.889,175.87466086]
[1646080986018,4.95074571,98.003,97.89,39.2711915]
[1646080986420,4.95074571,98.003,97.891,22.7281915]
[1646080986621,4.95074571,98.003,97.892,4.083]
[1646080986819,4.95074571,98.003,97.892,26.8111915]
[1646080987024,4.95074571,98.003,97.893,2.74678921]
[1646080987622,4.95074571,98.003,97.893,2.24678921]
[1646080988220,0.27421528,97.98,97.894,24.06440229]
[1646080988419,0.27421528,97.98,97.894,4.083]
[1646080988820,0.27421528,97.98,97.894,19.98140229]
[1646080989019,0.27421528,97.98,97.895,4.083]
[1646080989622,0.27421528,97.98,97.895,126.26440229]
[1646080989843,0.27421528,97.98,97.896,2.74678921]
[1646080990043,0.27421528,97.98,97.91,12.46]
[1646080990246,0.27421528,97.98,97.911,56.47772241]
[1646080990445,0.27421528,97.98,97.912,102.2]
[1646080990645,0.27421528,97.98,97.912,122.18140229]
[1646080990845,0.27421528,97.98,97.912,19.98140229]
[1646080991046,0.27421528,97.98,97.913,19.98140229]
[1646080991448,0.27421528,97.98,97.911,59.22451162]
[1646080991848,0.27421528,97.98,97.911,56.47772241]
[1646080993747,0.27421528,97.98,97.912,2.74678921]
[1646080993948,0.27421528,97.98,97.912,22.7281915]
[1646080994147,0.27421528,97.98,97.912,19.98140229]
[1646080994348,0.27421528,97.98,97.911,56.47772241]
[1646080997951,0.27421528,97.98,97.89,12.46]
[1646080998152,0.27421528,97.98,97.89,62.46]
[1646080998551,0.27421528,97.98,97.89,50.0]
[1646080998751,2.74678921,97.979,97.89,50.0]
[1646080998951,163.5,97.976,97.89,50.0]
[1646080999151,163.5,97.969,97.89,50.0]
[1646080999351,1.79747452,97.968,97.89,50.0]
[1646080999552,4.54426373,97.968,97.89,50.0]
[1646080999750,163.5,97.966,97.89,50.0]
[1646080999952,1.6708276,97.965,97.89,50.0]
[1646081002153,1.6708276,97.965,97.891,59.24199819]
[1646081002557,4.41761681,97.965,97.89,50.0]
[1646081002957,4.41761681,97.965,97.89,41.51117977]
[1646081009363,38.67251199,97.978,97.89,44.25796898]
[1646081009763,38.67251199,97.978,97.89,41.51117977]
[1646081010964,0.27421528,97.98,97.891,2.74678921]
[1646081011368,0.27421528,97.98,97.892,22.05966896]
[1646081011768,0.27421528,97.98,97.893,2.74678921]
[1646081012269,0.27421528,97.98,97.89,53.97117977]
[1646081013369,0.27421528,97.98,97.891,2.74678921]
[1646081015474,0.27421528,97.98,97.892,22.05966896]
[1646081015673,0.27421528,97.98,97.893,2.67230232]
[1646081015871,0.27421528,97.98,97.893,5.41909153]
[1646081016076,0.27421528,97.98,97.894,2.74678921]
[1646081016272,0.27421528,97.98,97.894,5.56886616]
[1646081016471,0.27421528,97.98,97.894,2.74678921]
[1646081017074,0.27421528,97.98,97.895,22.05966896]
[1646081017472,0.27421528,97.98,97.896,2.74678921]
[1646081017672,0.27421528,97.98,97.911,43.81451165]
[1646081021177,0.27421528,97.98,97.92,12.46]
[1646081021375,0.27421528,97.98,97.921,3.02418351]
[1646081021576,0.27421528,97.98,97.922,102.2]
[1646081021777,0.27421528,97.98,97.923,2.99069969]
[1646081021975,0.27421528,97.98,97.924,102.2]
[1646081022275,0.27421528,97.98,97.927,102.2]
[1646081022476,0.27421528,97.98,97.94,12.46]
[1646081022677,0.27421528,97.98,97.942,102.2]
[1646081022878,16.65468085,98.054,97.943,2.13999312]
[1646081023281,16.65468085,98.054,97.944,2.74678921]
[1646081024701,19.40147006,98.054,97.944,2.74678921]
[1646081024899,1.82520152,98.053,97.942,23.3348]
[1646081025098,1.80387584,98.052,97.942,23.3348]
[1646081025298,5.87602277,98.052,97.942,23.3348]
[1646081025498,2.74678921,98.051,97.942,23.3348]
[1646081026899,2.74678921,98.051,97.94,12.46]
[1646081027100,2.74678921,98.051,97.913,23.4861]
[1646081027404,1.46234996,98.049,97.92,12.46]
[1646081027802,2.74678921,98.048,97.923,68.26362107]
[1646081028003,61.3,98.047,97.923,23.0012]
[1646081028201,102.2,98.044,97.923,23.0012]
[1646081028404,102.2,98.029,97.923,23.0012]
[1646081028601,12.46,98.03,97.923,23.0012]
[1646081028602,125.4506,98.028,97.923,23.0012]
[1646081028803,1.82885603,98.027,97.923,23.0012]
[1646081029005,4.16787685,98.026,97.913,23.4861]
[1646081029202,69.81324024,98.026,97.913,23.4861]
[1646081029402,116.61205973,98.025,97.913,23.4861]
[1646081029602,1.78445178,98.024,97.913,23.4861]
[1646081029802,102.2,98.022,97.913,23.4861]
[1646081030003,17.16020429,98.009,97.913,23.4861]
[1646081030202,1.64788198,98.007,97.902,59.13088336]
[1646081030605,2.74678921,98.006,97.902,59.13088336]
[1646081033008,1.56860026,98.004,97.902,59.13088336]
[1646081033208,1.73308715,97.999,97.902,59.13088336]
[1646081033408,103.93308715,97.999,97.902,59.13088336]
[1646081033710,4.64973581,97.998,97.902,59.13088336]
[1646081034108,2.74678921,97.997,97.902,59.13088336]
[1646081035209,23.563,97.996,97.87,12.46]
[1646081035409,1.47578725,97.995,97.862,47.7029]
[1646081035609,4.22257646,97.995,97.862,47.7029]
[1646081035809,4.22257646,97.995,97.87,12.46]
[1646081036011,2.74678921,97.994,97.87,12.46]
[1646081036213,12.46,97.99,97.87,12.46]
[1646081036411,12.46,97.99,97.862,47.7029]
[1646081036412,1.88129487,97.988,97.891,54.21726567]
[1646081036611,1.57390041,97.986,97.891,54.21726567]
[1646081037311,2.74678921,97.985,97.891,54.21726567]
[1646081037811,1.3886602,97.983,97.891,54.21726567]
[1646081038214,2.74678921,97.982,97.891,54.21726567]
[1646081042315,1.3886602,97.983,97.891,54.21726567]
[1646081043918,1.3886602,97.983,97.862,47.7029]
[1646081043919,2.74678921,97.982,97.862,47.7029]
[1646081044117,2.74678921,97.982,97.87,12.46]
[1646081044316,102.2,97.979,97.862,47.7029]
[1646081044518,1.82292791,97.978,97.862,47.7029]
[1646081044717,15.10262292,97.978,97.862,47.7029]
[1646081044917,1.64427926,97.976,97.888,48.96086698]
[1646081045319,2.74678921,97.975,97.888,48.96086698]
[1646081045518,1.64427926,97.976,97.888,48.96086698]
[1646081046321,14.66425229,97.977,97.888,48.96086698]
[1646081046722,14.66425229,97.977,97.89,53.97117977]
[1646081047324,26.33648921,97.987,97.891,102.2]
[1646081047721,26.33648921,97.987,97.89,53.97117977]
[1646081048323,15.38348733,97.983,97.89,53.97117977]
[1646081048724,15.38348733,97.983,97.891,102.2]
[1646081048925,15.38348733,97.983,97.891,2.74678921]
[1646081049129,15.38348733,97.983,97.892,2.74678921]
[1646081050731,1.75662439,98.012,97.892,2.74678921]
[1646081050932,23.9862,98.019,97.893,102.2]
[1646081051131,1.86363908,98.018,97.894,2.3533802]
[1646081051331,1.86363908,98.018,97.895,102.2]
[1646081051631,16.9515692,98.017,97.897,102.2]
[1646081051830,1.78892055,98.016,97.897,102.2]
[1646081052030,1.78892055,98.016,97.911,44.47238386]
[1646081052430,1.78892055,98.016,97.911,47.21917307]
[1646081053935,1.78892055,98.016,97.911,62.40847307]
[1646081055934,16.9515692,98.017,97.912,2.49503782]
[1646081056334,16.9515692,98.017,97.913,2.74678921]
[1646081056534,16.9515692,98.017,97.913,107.58361269]
[1646081056935,16.9515692,98.017,97.914,2.74678921]
[1646081057940,16.9515692,98.017,97.915,102.2]
[1646081058136,16.9515692,98.017,97.93,12.46]
[1646081058337,16.9515692,98.017,97.931,60.19378793]
[1646081058536,16.9515692,98.017,97.931,62.94057714]
[1646081058936,16.9515692,98.017,97.932,2.74678921]
[1646081059341,1.52143985,98.016,97.932,2.74678921]
[1646081059538,1.52143985,98.016,97.93,12.46]
[1646081059738,1.52143985,98.016,97.914,2.74678921]
[1646081060138,1.52143985,98.016,97.917,2.74678921]
[1646081060538,1.52143985,98.016,97.918,54.8598766]
[1646081061741,1.52143985,98.016,97.919,2.74678921]
[1646081062742,1.52143985,98.016,97.92,114.66]
[1646081063142,1.52143985,98.016,97.921,26.19225817]
[1646081063341,16.9515692,98.017,97.923,2.41328627]
[1646081063741,16.9515692,98.017,97.924,2.74678921]
[1646081063942,16.9515692,98.017,97.924,48.19541667]
[1646081064142,16.9515692,98.017,97.925,23.44546896]
[1646081064343,1.69434259,98.016,97.925,26.19225817]
[1646081064546,1.69434259,98.016,97.926,2.74678921]
[1646081064763,1.41068543,98.014,97.93,12.46]
[1646081065342,1.41068543,98.014,97.926,2.74678921]
[1646081066344,1.41068543,98.014,97.894,23.44546896]
[1646081066542,103.61068543,98.014,97.89,41.51117977]
[1646081066741,1.46025109,98.012,97.891,23.6044]
[1646081067144,1.46025109,98.012,97.9,51.81961633]
[1646081068345,1.41625715,98.009,97.9,51.81961633]
[1646081070653,1.41625715,98.009,97.901,2.74678921]
[1646081071253,1.87527859,98.014,97.902,23.44546896]
[1646081071454,1.87527859,98.014,97.903,22.8704]
[1646081071653,1.87527859,98.014,97.903,25.61718921]
[1646081071854,1.87527859,98.014,97.904,2.74678921]
[1646081075477,1.87527859,98.014,97.903,22.8704]
[1646081075674,9.75930868,98.013,97.903,22.8704]
[1646081076078,9.75930868,98.013,97.904,2.74678921]
[1646081077275,2.74678921,98.012,97.903,22.8704]
[1646081077472,4.5421261,98.012,97.903,22.8704]
[1646081077673,1.62835058,98.009,97.903,22.8704]
[1646081078076,1.62835058,98.009,97.904,51.97620647]
[1646081078274,9.75930868,98.008,97.904,51.97620647]
[1646081080678,9.75930868,98.008,97.905,102.2]
[1646081080877,23.3652,98.015,97.92,114.66]
[1646081081078,1.61541828,98.029,97.922,102.2]
[1646081081279,1.61541828,98.029,97.922,110.11]
[1646081081480,1.61541828,98.029,97.922,133.55546896]
[1646081081678,24.8089,98.046,97.924,102.2]
[1646081081878,24.8089,98.046,97.925,2.51212452]
[1646081082080,1.7056606,98.034,97.925,2.74678921]
[1646081082382,1.7056606,98.034,97.926,2.74678921]
[1646081082579,1.7056606,98.034,97.94,12.46]
[1646081082779,1.60754504,98.045,97.94,114.66]
[1646081082979,1.60754504,98.045,97.941,2.74678921]
[1646081083380,16.43951412,98.034,97.942,45.56783873]
[1646081083581,16.43951412,98.034,97.943,102.2]
[1646081083782,16.43951412,98.034,97.943,104.94678921]
[1646081083982,16.43951412,98.034,97.944,2.74678921]
[1646081084183,1.87210159,98.087,97.944,2.74678921]
[1646081084387,1.87210159,98.087,97.945,193.03485432]
[1646081084582,47.7322,98.095,97.945,193.03485432]
[1646081084583,1.66193542,98.094,97.951,5.0]
[1646081084783,1.66193542,98.094,97.962,2.97712344]
[1646081084986,1.66193542,98.094,97.96,12.46]
[1646081084987,1.66193542,98.094,97.965,2.28471922]
[1646081085183,17.23838739,98.093,97.981,102.2]
[1646081085384,17.23838739,98.093,97.983,102.2]
[1646081085584,4.08,98.136,97.991,0.36]
[1646081085785,47.8455,98.151,98.0,12.46]
[1646081086083,1.64628251,98.15,98.002,2.45255097]
[1646081086484,17.23694514,98.149,98.004,102.2]
[1646081086683,1.74338459,98.148,98.005,2.8303075]
[1646081086884,1.74338459,98.148,98.011,110.43400784]
[1646081087086,1.74338459,98.148,98.021,102.2]
[1646081087285,1.74338459,98.148,98.023,102.2]
[1646081087490,1.74338459,98.148,98.024,2.65789985]
[1646081087690,1.74215322,98.173,98.031,0.39]
[1646081087890,4.078,98.175,98.041,102.2]
[1646081088091,1.84790076,98.178,98.041,102.2]
[1646081088092,1.52959058,98.193,98.042,2.93444332]
[1646081088292,1.52959058,98.193,98.051,0.39]
[1646081088491,1.52959058,98.193,98.061,102.2]
[1646081088693,20.22886308,98.192,98.062,20.28935354]
[1646081088892,20.22886308,98.192,98.063,102.2]
[1646081089089,1.83490686,98.191,98.064,3.07080868]
[1646081089288,1.83490686,98.191,98.065,102.2]
[1646081089490,1.83490686,98.191,98.066,2.49854346]
[1646081089689,1.83490686,98.191,98.083,102.2]
[1646081090098,1.83490686,98.191,98.085,102.2]
[1646081090489,1.83490686,98.191,98.086,2.74678921]
[1646081090690,1.83490686,98.191,98.1,12.46]
[1646081090888,1.83490686,98.191,98.101,57.81705561]
[1646081091490,1.83490686,98.191,98.101,60.56384482]
[1646081091691,1.83490686,98.191,98.101,87.18131378]
[1646081091891,1.83490686,98.191,98.101,84.43452457]
[1646081092095,1.83490686,98.191,98.101,57.81705561]
[1646081092694,1.83490686,98.191,98.1,12.46]
[1646081094892,1.53081763,98.19,98.1,12.46]
[1646081095094,1.53081763,98.19,98.072,4.075]
[1646081095294,4.27760684,98.19,98.08,12.46]
[1646081095491,1.53081763,98.19,98.08,12.46]
[1646081095694,1.53081763,98.19,98.08,114.66]
[1646081095893,1.53081763,98.19,98.081,29.36425817]
[1646081096095,1.53081763,98.19,98.082,52.22242917]
[1646081096292,1.53081763,98.19,98.082,78.83989813]
[1646081096493,1.53081763,98.19,98.083,26.61746896]
[1646081096895,1.53081763,98.19,98.084,2.74678921]